bitfinex-derivatives/quotes_SOLF0:USTF0_20250603
["timestamp","ask_amount","ask_price","bid_price","bid_amount"]
[1748934693391,6.2533,159.82,159.8,0.04214022]
[1748934694002,6.2532,159.83,159.8,6.29614022]
[1748934694187,0.04207476,159.84,159.8,0.04214022]
[1748934694593,6.2532,159.83,159.8,6.29604022]
[1748934695489,6.29477476,159.84,159.8,6.29604022]
[1748934695794,0.04207476,159.84,159.8,6.29604022]
[1748934698703,6.29487476,159.84,159.8,6.29604022]
[1748934699302,6.29487476,159.84,159.81,6.2537]
[1748934700498,6.29487476,159.84,159.8,6.29604022]
[1748934700800,0.04207476,159.84,159.8,0.04214022]
[1748934701301,6.29487476,159.84,159.81,6.2537]
[1748934704498,6.29487476,159.84,159.81,12.01203339]
[1748934706805,6.29487476,159.84,159.81,12.02443891]
[1748934709807,6.2529,159.83,159.82,5.77073891]
[1748934710207,6.2529,159.83,159.81,5.77073891]
[1748934710406,6.29477476,159.84,159.82,5.77073891]
[1748934710603,6.29477476,159.84,159.82,5.77819036]
[1748934712905,0.04207476,159.84,159.82,5.77819036]
[1748934713916,6.29497476,159.84,159.82,5.77819036]
[1748934714215,0.04207476,159.84,159.82,5.77819036]
[1748934714403,6.29487476,159.84,159.81,6.2537]
[1748934715210,6.29487476,159.84,159.82,5.78140924]
[1748934715606,6.2529,159.83,159.82,5.78140924]
[1748934718318,6.2529,159.83,159.81,6.2537]
[1748934718520,6.2529,159.83,159.82,5.7822797]
[1748934722826,0.04207476,159.84,159.82,5.7822797]
[1748934722827,6.29477476,159.84,159.82,5.7822797]
[1748934724022,10.4429585,159.84,159.82,5.7822797]
[1748934724632,10.4429585,159.84,159.82,5.78418068]
[1748934725330,0.04207476,159.84,159.82,5.78418068]
[1748934725525,0.04207476,159.84,159.83,5.78418068]
[1748934725724,0.04207476,159.84,159.83,9.93236442]
[1748934725919,0.04207476,159.84,159.83,10.40108374]
[1748934726127,0.04207476,159.84,159.83,18.05043663]
[1748934727230,0.04207476,159.84,159.83,13.90225289]
[1748934733234,33.1634,159.9,159.83,14.12865921]
[1748934733536,31.18,159.9,159.85,12.25665719]
[1748934733833,113.42264595,159.91,159.85,12.25665719]
[1748934734330,0.04367317,159.9,159.86,5.82109729]
[1748934734535,0.04367317,159.9,159.87,5.77735087]
[1748934735136,6.52297949,159.9,159.87,5.77735087]
[1748934735324,6.52297949,159.9,159.86,5.82109729]
[1748934735838,6.2514,159.87,159.86,5.82109729]
[1748934738233,6.2514,159.87,159.86,0.04374642]
[1748934748233,6.2525,159.84,159.83,5.77617056]
[1748934748441,6.47930632,159.84,159.82,5.77617056]
[1748934748843,6.2529,159.83,159.82,5.77617056]
[1748934749142,6.47930632,159.84,159.82,5.77617056]
[1748934749543,12.73210632,159.84,159.82,5.77617056]
[1748934750137,6.2528,159.84,159.82,5.77617056]
[1748934751536,6.2528,159.84,159.82,5.77787229]
[1748934751839,6.2529,159.83,159.82,5.77787229]
[1748934754348,6.2529,159.83,159.81,5.82481334]
[1748934755439,6.2529,159.83,159.81,5.82582004]
[1748934756043,6.2529,159.83,159.81,5.82526408]
[1748934757749,6.2533,159.82,159.81,5.82526408]
[1748934759241,10.40242868,159.82,159.81,0.04694105]
[1748934759435,10.40242868,159.82,159.81,5.82408694]
[1748934760451,10.40242868,159.82,159.81,0.04694105]
[1748934761047,10.40242868,159.82,159.81,5.82408694]
[1748934763250,10.40242868,159.82,159.81,0.04694105]
[1748934763749,10.40242868,159.82,159.81,5.82328363]
[1748934764749,10.40242868,159.82,159.81,0.04694105]
[1748934767947,6.2533,159.82,159.81,0.04694105]
[1748934768151,10.40242868,159.82,159.81,0.04694105]
[1748934769248,6.2533,159.82,159.81,0.04694105]
[1748934771350,6.2533,159.82,159.81,5.82477307]
[1748934772254,6.2533,159.82,159.81,0.04694105]
[1748934774155,10.40202868,159.83,159.81,0.04694105]
[1748934774350,10.40202868,159.83,159.81,5.82477307]
[1748934774853,10.40202868,159.83,159.81,11.60235417]
[1748934775053,10.40202868,159.83,159.81,5.82452215]
[1748934775859,6.2533,159.82,159.81,5.82452215]
[1748934779264,10.40212868,159.83,159.81,5.82452215]
[1748934781265,10.40212868,159.83,159.81,5.83078781]
[1748934781766,4.14912868,159.82,159.81,5.83078781]
[1748934782468,4.14912868,159.82,159.81,0.04694105]
[1748934783166,10.40242868,159.82,159.81,0.04694105]
[1748934783364,10.40242868,159.82,159.81,5.83557963]
[1748934784168,10.40242868,159.82,159.81,0.04694105]
[1748934784865,4.14912868,159.82,159.78,5.78863858]
[1748934785167,4.14912868,159.79,159.77,36.91330847]
[1748934785360,4.14912868,159.78,159.77,5.79330847]
[1748934785759,10.40402868,159.78,159.77,5.79330847]
[1748934786062,10.40402868,159.78,159.76,0.04613394]
[1748934786063,4.14912868,159.78,159.76,0.04613394]
[1748934786267,4.14912868,159.77,159.76,0.04613394]
[1748934786668,10.40442868,159.77,159.76,0.04613394]
[1748934792768,6.2569,159.73,159.72,5.77816054]
[1748934792974,10.40602868,159.73,159.72,5.77816054]
[1748934793169,10.40602868,159.73,159.71,36.81816054]
[1748934793966,4.14912868,159.73,159.71,43.07566054]
[1748934794269,0.04208586,159.74,159.71,40.96728922]
[1748934794465,0.04208586,159.74,159.73,6.2568]
[1748934795375,4.19121454,159.74,159.71,38.94226054]
[1748934795677,4.14912868,159.73,159.71,38.94226054]
[1748934795974,4.14912868,159.72,159.71,31.04]
[1748934797168,6.2569,159.73,159.71,31.04]
[1748934798077,6.2572,159.72,159.71,31.04]
[1748934799476,6.2572,159.72,159.7,0.04515964]
[1748934800275,6.2576,159.71,159.7,0.04515964]
[1748934800573,37.57274897,159.74,159.7,0.04515964]
[1748934800777,6.2576,159.72,159.7,0.04515964]
[1748934801484,6.2576,159.71,159.7,0.04515964]
[1748934802380,6.2573,159.72,159.7,0.04515964]
[1748934802772,6.53274897,159.74,159.7,0.04515964]
[1748934802973,6.257,159.73,159.7,6.30295964]
[1748934803480,6.257,159.73,159.71,6.2576]
[1748934803782,6.53274897,159.74,159.7,0.04515964]
[1748934804379,6.2568,159.73,159.7,6.30285964]
[1748934805778,6.2568,159.73,159.71,6.2575]
[1748934806078,6.29868586,159.74,159.71,6.2575]
[1748934806889,6.2568,159.73,159.7,6.30305964]
[1748934807382,6.29868586,159.74,159.7,6.30305964]
[1748934807879,6.29868586,159.74,159.71,6.2574]
[1748934810282,0.04208586,159.74,159.7,0.04515964]
[1748934811280,6.2569,159.73,159.7,0.04515964]
[1748934812284,6.2574,159.72,159.7,0.04515964]
[1748934813984,6.2576,159.71,159.7,0.04515964]
[1748934814286,6.53274897,159.74,159.7,0.04515964]
[1748934815287,6.2569,159.73,159.7,0.04515964]
[1748934815488,6.53274897,159.74,159.7,0.04515964]
[1748934815887,6.2573,159.72,159.7,0.04515964]
[1748934816889,6.2576,159.71,159.7,0.04515964]
[1748934823894,0.04208586,159.74,159.7,0.04515964]
[1748934824887,6.2569,159.73,159.7,6.30285964]
[1748934828193,6.2569,159.73,159.7,12.08821947]
[1748934828686,6.2573,159.72,159.7,6.30285964]
[1748934829096,6.2573,159.72,159.7,12.08821947]
[1748934829994,6.257,159.73,159.7,12.08821947]
[1748934830291,6.257,159.73,159.71,5.78535983]
[1748934832088,6.2572,159.72,159.71,5.78999359]
[1748934832885,6.2576,159.71,159.7,5.83515323]
[1748934833085,6.2576,159.71,159.7,0.04515964]
[1748934835295,12.74826311,159.71,159.7,0.04515964]
[1748934835595,39.62996311,159.73,159.69,5.78999359]
[1748934835795,39.62996311,159.73,159.69,5.79298981]
[1748934836493,6.2578,159.71,159.69,5.84041171]
[1748934836894,6.2578,159.71,159.7,5.79298981]
[1748934837086,6.2578,159.71,159.69,5.84041171]
[1748934837492,6.258,159.7,159.69,0.0474219]
[1748934847295,10.41401586,159.7,159.69,0.0474219]
[1748934855002,10.41401586,159.7,159.69,2.19e-05]
[1748934855196,4.15601586,159.7,159.64,5.79134454]
[1748934855400,4.15601586,159.65,159.64,5.79134454]
[1748934856206,10.41601586,159.65,159.64,5.79134454]
[1748934857403,10.41601586,159.65,159.63,5.83327869]
[1748934857404,6.2604,159.64,159.63,5.83327869]
[1748934857603,6.2604,159.64,159.63,5.83700903]
[1748934858305,6.2604,159.64,159.63,0.04193415]
[1748934858507,10.41641586,159.64,159.63,0.04193415]
[1748934870514,0.04304771,159.66,159.63,0.04193415]
[1748934870515,10.41611586,159.65,159.63,0.04193415]
[1748934870718,4.19906357,159.66,159.63,0.04193415]
[1748934870915,10.45886357,159.66,159.63,6.30233415]
[1748934871817,6.30284771,159.66,159.63,6.30233415]
[1748934872014,0.04304771,159.66,159.64,6.2602]
[1748934874222,0.04304771,159.66,159.64,12.0458078]
[1748934876727,0.04304771,159.66,159.64,6.2602]
[1748934876923,0.04304771,159.66,159.64,12.04994982]
[1748934877321,0.04304771,159.66,159.64,12.05153883]
[1748934877527,6.30264771,159.66,159.64,5.79133883]
[1748934877725,0.04304771,159.66,159.64,5.79133883]
[1748934878424,4.19906357,159.66,159.64,5.79133883]
[1748934878624,4.15601586,159.65,159.64,5.79133883]
[1748934878824,4.15601586,159.65,159.63,5.83327298]
[1748934879222,4.15601586,159.65,159.64,5.79133883]
[1748934879825,6.2603,159.64,159.63,5.83327298]
[1748934880321,6.2603,159.64,159.63,0.04193415]
[1748934880818,6.2603,159.64,159.63,5.83817512]
[1748934882423,10.41601586,159.65,159.63,5.83817512]
[1748934882628,6.26,159.65,159.63,5.83817512]
[1748934884521,6.26,159.65,159.63,5.84124533]
[1748934885928,6.2603,159.64,159.63,5.84124533]
[1748934886130,6.2603,159.64,159.63,0.04193415]
[1748934891727,6.2603,159.64,159.63,5.84422205]
[1748934892223,6.2603,159.64,159.63,0.04193415]
[1748934892424,6.2603,159.64,159.63,5.84454353]
[1748934894230,6.2603,159.64,159.63,0.04193415]
[1748934894927,6.2603,159.64,159.63,5.84602629]
[1748934895227,6.2603,159.64,159.63,0.04193415]
[1748934901031,0.04304771,159.66,159.63,11.8473029]
[1748934901329,0.04304771,159.66,159.64,11.8969641]
[1748934901535,0.04304771,159.66,159.64,18.1572641]
[1748934902031,0.04304771,159.66,159.64,11.8969641]
[1748934902228,0.04304771,159.66,159.65,7.74094824]
[1748934902635,0.04304771,159.66,159.64,10.41631586]
[1748934902636,0.04304771,159.66,159.64,18.1572641]
[1748934902838,0.04304771,159.66,159.65,18.1568641]
[1748934903637,0.04304771,159.66,159.65,11.8969641]
[1748934904337,0.04304771,159.66,159.65,7.74094824]
[1748934905839,0.04304771,159.66,159.65,14.00084824]
[1748934906043,0.04304771,159.66,159.65,18.1568641]
[1748934906644,33.1616,159.72,159.65,18.1568641]
[1748934906843,4.15601586,159.71,159.68,9.95532719]
[1748934907042,6.2586,159.69,159.68,9.95532719]
[1748934907242,4.15601586,159.71,159.68,9.95532719]
[1748934907747,6.2582,159.7,159.68,9.9961481]
[1748934908343,0.04489569,159.71,159.68,9.9961481]
[1748934908344,6.30259569,159.71,159.68,9.9961481]
[1748934908543,0.04489569,159.71,159.68,9.9961481]
[1748934910053,6.258,159.7,159.68,16.2547481]
[1748934910245,0.04489569,159.71,159.69,4.15601586]
[1748934910445,0.04489569,159.71,159.7,4.15601586]
[1748934911054,0.04489569,159.71,159.7,9.95017828]
[1748934911350,0.04489569,159.71,159.7,9.94315867]
[1748934911550,0.04489569,159.71,159.7,16.20115867]
[1748934912252,0.04489569,159.71,159.7,47.18115867]
[1748934912653,30.98,159.78,159.71,6.2575]
[1748934912654,4.15601586,159.76,159.71,6.2575]
[1748934912855,4.15601586,159.76,159.72,4.15601586]
[1748934913256,37.4681036,159.78,159.71,12.04235882]
[1748934913457,37.4681036,159.78,159.72,5.78485882]
[1748934913755,0.04450994,159.77,159.73,0.0456322]
[1748934914555,0.04450994,159.77,159.74,5.78228016]
[1748934914950,0.04450994,159.77,159.73,5.82791236]
[1748934915452,6.53261354,159.77,159.73,0.0456322]
[1748934916853,6.2564,159.74,159.73,0.0456322]
[1748934935270,10.41037298,159.74,159.73,0.0456322]
[1748934939171,6.2564,159.74,159.73,0.0456322]
[1748934939468,10.41037298,159.74,159.73,0.0456322]
[1748934942367,6.258,159.7,159.69,5.7822331]
[1748934942765,6.258,159.7,159.68,5.7822331]
[1748934943168,6.258,159.7,159.69,5.7822331]
[1748934948678,6.258,159.7,159.69,5.79521153]
[1748934949971,0.04769605,159.71,159.69,4.15397298]
[1748934950272,0.04769605,159.71,159.7,5.79484519]
[1748934950482,0.04769605,159.71,159.69,18.15322122]
[1748934950673,0.04769605,159.71,159.69,10.41227298]
[1748934950875,0.04769605,159.71,159.7,5.7963807]
[1748934951476,0.04769605,159.71,159.69,18.15322122]
[1748934952079,6.30529605,159.71,159.69,18.15322122]
[1748934954677,0.04769605,159.71,159.69,18.15322122]
[1748934958189,0.04769605,159.71,159.69,10.41227298]
[1748934959381,0.04769605,159.71,159.69,18.144077]
[1748934960584,0.04769605,159.71,159.7,10.41197298]
[1748934961681,0.04769605,159.71,159.7,22.00967902]
[1748934961889,0.04769605,159.71,159.7,10.41197298]
[1748934962390,0.04769605,159.71,159.7,22.00967902]
[1748934963092,0.04769605,159.71,159.7,10.41197298]
[1748934963686,0.04769605,159.71,159.7,4.15397298]
[1748934964286,0.04769605,159.71,159.69,15.75167902]
[1748934964481,0.04769605,159.71,159.7,4.15397298]
[1748934964882,0.04769605,159.71,159.7,41.37197298]
[1748934967194,0.04769605,159.71,159.7,37.218]
[1748934967394,0.04769605,159.71,159.7,41.37197298]
[1748934968398,30.96,159.8,159.7,35.11397298]
[1748934968586,2.0236,159.81,159.77,4.15397298]
[1748934968893,30.96,159.83,159.77,4.15397298]
[1748934969093,4.15397298,159.81,159.77,4.15397298]
[1748934969396,4.19513915,159.81,159.78,5.79517918]
[1748934970097,4.19513915,159.81,159.77,9.99114575]
[1748934970688,4.19513915,159.81,159.77,9.97834091]
[1748934970899,4.19513915,159.81,159.78,10.40887298]
[1748934970900,10.44903915,159.81,159.78,10.40887298]
[1748934971196,4.19513915,159.81,159.78,4.15397298]
[1748934971393,4.19513915,159.81,159.79,6.2544]
[1748934971600,4.19513915,159.81,159.78,4.15397298]
[1748934971989,10.44913915,159.81,159.78,4.15397298]
[1748934972899,6.2541,159.8,159.78,4.15397298]
[1748934973197,6.2541,159.8,159.79,4.15397298]
[1748934975402,6.2545,159.79,159.77,5.82436793]
[1748934975589,0.04116617,159.81,159.77,0.04199359]
[1748934975590,4.15397298,159.8,159.77,0.04199359]
[1748934975990,6.2549,159.78,159.77,0.04199359]
[1748934990708,10.40887298,159.78,159.77,0.04199359]
[1748934991004,4.15397298,159.78,159.72,5.76931085]
[1748934991204,4.15397298,159.75,159.72,5.76931085]
[1748934991407,4.15397298,159.75,159.71,47.12068383]
[1748934991910,6.2567,159.74,159.71,47.16650227]
[1748934992307,6.2567,159.74,159.71,41.39719142]
[1748934992511,4.20025745,159.75,159.71,43.01252929]
[1748934992907,6.2567,159.74,159.71,37.24321844]
[1748934993216,4.20025745,159.75,159.71,37.24321844]
[1748934993711,6.2567,159.74,159.71,43.01252929]
[1748934993912,6.2567,159.74,159.71,37.24321844]
[1748934994107,6.2567,159.74,159.71,43.01954255]
[1748934994306,10.41067298,159.74,159.71,43.01954255]
[1748934997609,10.41067298,159.74,159.71,43.02284218]
[1748934998107,4.15397298,159.74,159.71,36.7655473]
[1748934999712,6.257,159.73,159.71,36.7655473]
[1748935001319,4.15397298,159.74,159.71,30.98581844]
[1748935001507,4.20025745,159.75,159.71,35.13979142]
[1748935001908,0.04628447,159.75,159.71,40.92251676]
[1748935002111,0.04628447,159.75,159.73,4.15397298]
[1748935002712,0.04628447,159.75,159.74,6.2564]
[1748935007517,0.04628447,159.75,159.74,16.19279777]
[1748935008922,0.04628447,159.75,159.74,12.03882479]
[1748935009315,0.04628447,159.75,159.74,16.19279777]
[1748935009720,0.04628447,159.75,159.74,16.19379134]
[1748935012219,0.04628447,159.75,159.74,12.03981836]
[1748935012426,0.04628447,159.75,159.74,16.19379134]
[1748935013521,0.04628447,159.75,159.74,12.04528121]
[1748935016526,0.04628447,159.75,159.74,5.78888121]
[1748935017523,0.04628447,159.75,159.74,12.04528121]
[1748935019222,0.04628447,159.75,159.74,5.78888121]
[1748935019626,0.04628447,159.75,159.73,10.41067298]
[1748935020126,0.04628447,159.75,159.74,5.79818752]
[1748935020325,0.04628447,159.75,159.73,10.41067298]
[1748935020526,0.04628447,159.75,159.74,6.2564]
[1748935020735,0.04628447,159.75,159.74,10.41037298]
[1748935021231,0.04628447,159.75,159.74,18.13727856]
[1748935022330,5.84683209,159.87,159.74,4.15397298]
[1748935022531,4.15397298,159.86,159.82,4.15397298]
[1748935022728,4.15397298,159.86,159.83,4.15397298]
[1748935023230,6.2525,159.84,159.83,0.03981241]
[1748935023921,6.2523,159.85,159.83,0.03981241]
[1748935024523,6.2525,159.84,159.83,0.03981241]
[1748935028238,6.2542,159.8,159.78,5.78390242]
[1748935028831,6.48147194,159.83,159.78,5.78390242]
[1748935029033,6.48147194,159.81,159.77,36.70390242]
[1748935029235,6.52828867,159.81,159.77,36.75192387]
[1748935029432,6.52828867,159.81,159.77,0.04802145]
[1748935030030,6.2549,159.78,159.77,0.04802145]
[1748935030828,6.2546,159.79,159.77,0.04802145]
[1748935031033,6.52828867,159.81,159.77,0.04802145]
[1748935031435,6.2548,159.79,159.77,0.04802145]
[1748935032436,6.2542,159.8,159.77,6.30332145]
[1748935033242,6.2545,159.79,159.77,0.04802145]
[1748935034543,6.2542,159.8,159.77,6.30322145]
[1748935034744,6.52828867,159.81,159.77,0.04802145]
[1748935036046,6.2548,159.79,159.77,0.04802145]
[1748935037046,6.52828867,159.81,159.77,0.04802145]
[1748935037047,6.2549,159.78,159.77,0.04802145]
[1748935051458,0.04681673,159.81,159.77,0.04802145]
[1748935051852,6.30071673,159.81,159.78,6.2547]
[1748935052055,0.04681673,159.81,159.77,0.04802145]
[1748935053160,6.2544,159.8,159.77,6.30302145]
[1748935053355,6.2544,159.8,159.77,0.04802145]
[1748935053561,0.04681673,159.81,159.77,0.04802145]
[1748935053766,6.2548,159.79,159.77,0.04802145]
[1748935056354,6.2548,159.79,159.77,12.09558463]
[1748935057959,6.2548,159.79,159.77,12.09035283]
[1748935058266,6.2548,159.79,159.77,6.30322145]
[1748935058560,6.2543,159.8,159.77,12.09068119]
[1748935060767,6.2549,159.78,159.77,5.83548119]
[1748935060963,6.2549,159.78,159.77,0.04802145]
[1748935066457,12.73637194,159.78,159.77,0.04802145]
[1748935077374,6.256,159.75,159.74,5.79923794]
[1748935077578,6.48147194,159.75,159.73,5.79923794]
[1748935077771,30.92,159.77,159.72,5.80140945]
[1748935077964,6.48147194,159.73,159.72,5.80140945]
[1748935079076,12.73837194,159.73,159.72,5.80140945]
[1748935079473,6.48147194,159.73,159.71,0.04008985]
[1748935080081,6.48147194,159.73,159.71,5.8414993]
[1748935080468,6.2572,159.72,159.71,5.8414993]
[1748935080967,6.2572,159.72,159.71,5.84370007]
[1748935083977,6.2572,159.72,159.71,5.84019305]
[1748935085581,6.257,159.73,159.71,5.84019305]
[1748935085984,6.2572,159.72,159.71,5.84019305]
[1748935087276,6.2572,159.72,159.71,0.04008985]
[1748935089277,10.41148976,159.72,159.71,0.04008985]
[1748935093079,4.15428976,159.72,159.71,0.04008985]
[1748935094179,10.41148976,159.72,159.71,0.04008985]
[1748935098684,6.257,159.73,159.71,0.04008985]
[1748935098885,4.15428976,159.72,159.71,0.04008985]
[1748935099984,4.15428976,159.73,159.71,6.29768985]
[1748935100188,4.19503283,159.74,159.71,5.82967853]
[1748935100481,4.19503283,159.74,159.72,6.2569]
[1748935101079,4.15428976,159.73,159.71,5.82967853]
[1748935101284,4.15428976,159.72,159.71,5.82967853]
[1748935101985,10.41148976,159.72,159.71,5.82967853]
[1748935102486,4.15428976,159.72,159.71,5.82967853]
[1748935103387,4.15428976,159.72,159.71,5.83291723]
[1748935105486,4.15428976,159.72,159.71,0.04008985]
[1748935112396,4.15428976,159.72,159.71,6.29768985]
[1748935115903,10.41081867,159.73,159.71,14.02265571]
[1748935116403,6.2571,159.73,159.71,14.02265571]
[1748935118204,10.45095869,159.74,159.71,14.02265571]
[1748935118406,10.45095869,159.74,159.73,5.81306391]
[1748935118711,10.45084766,159.74,159.73,5.81306391]
[1748935119101,4.19424766,159.74,159.73,6.2568]
[1748935119505,0.04074307,159.74,159.72,7.72496586]
[1748935119798,0.04074307,159.74,159.73,6.2568]
[1748935120206,0.04074307,159.74,159.72,13.98196586]
[1748935121799,4.15264254,159.73,159.71,7.76505571]
[1748935122011,0.04074307,159.74,159.71,7.76505571]
[1748935122012,4.15264254,159.72,159.71,7.76505571]
[1748935122709,4.15264254,159.72,159.71,0.04008985]
[1748935123201,10.40984254,159.72,159.71,0.04008985]
[1748935129919,10.40984254,159.72,159.71,7.76505571]
[1748935130620,10.40984254,159.72,159.71,0.04008985]
[1748935131621,6.2572,159.72,159.71,0.04008985]
[1748935131817,6.2572,159.72,159.71,7.76505571]
[1748935133424,6.2572,159.72,159.71,0.04008985]
[1748935138421,10.40964254,159.73,159.71,0.04008985]
[1748935139428,6.257,159.73,159.71,0.04008985]
[1748935139622,10.40964254,159.73,159.71,7.76505571]
[1748935139821,10.40964254,159.73,159.71,0.04008985]
[1748935140331,10.40964254,159.73,159.71,7.76505571]
[1748935140828,0.04074307,159.74,159.72,7.72496586]
[1748935141232,6.29734307,159.74,159.72,7.72496586]
[1748935142625,6.2568,159.73,159.72,7.72496586]
[1748935143432,6.2572,159.72,159.71,7.76505571]
[1748935145325,6.257,159.73,159.71,7.76505571]
[1748935147739,10.44988561,159.74,159.72,7.72496586]
[1748935148235,6.29724307,159.74,159.72,7.72496586]
[1748935148429,0.04074307,159.74,159.72,7.72496586]
[1748935148627,0.04074307,159.74,159.73,11.8776084]
[1748935148826,74.64553161,159.79,159.73,35.09264254]
[1748935149130,4.15264254,159.81,159.77,4.15264254]
[1748935149337,4.15264254,159.82,159.78,9.96509533]
[1748935149934,4.1989246,159.82,159.78,10.00853386]
[1748935150336,10.4523246,159.82,159.79,6.2542]
[1748935150634,0.04628206,159.82,159.8,4.15264254]
[1748935150833,0.04628206,159.82,159.81,4.15264254]
[1748935151035,30.94,159.87,159.81,35.09264254]
[1748935151226,4.15264254,159.87,159.83,4.15264254]
[1748935151533,6.2524,159.85,159.83,4.15264254]
[1748935151740,6.2524,159.85,159.82,9.96509533]
[1748935152040,6.2524,159.85,159.82,10.01043529]
[1748935152041,6.29926995,159.85,159.82,10.01043529]
[1748935152438,6.29926995,159.85,159.82,4.1979825]
[1748935153336,6.2525,159.84,159.82,0.04533996]
[1748935154231,6.2529,159.83,159.82,0.04533996]
[1748935162338,6.2526,159.84,159.82,0.04533996]
[1748935162839,6.2529,159.83,159.82,0.04533996]
[1748935164441,6.2527,159.84,159.82,0.04533996]
[1748935164946,6.29916995,159.85,159.82,6.29843996]
[1748935165342,0.04686995,159.85,159.82,0.04533996]
[1748935165641,0.04686995,159.85,159.82,6.52482683]
[1748935166143,6.29916995,159.85,159.82,12.77812683]
[1748935166331,0.04686995,159.85,159.82,12.77812683]
[1748935167542,0.04686995,159.85,159.82,6.52482683]
[1748935167744,0.04686995,159.85,159.82,0.04533996]
[1748935168445,6.29926995,159.85,159.82,0.04533996]
[1748935168942,6.2526,159.84,159.82,0.04533996]
[1748935171635,6.2529,159.83,159.82,0.04533996]
[1748935178244,6.2529,159.83,159.78,30.9]
[1748935178245,4.1489554,159.83,159.78,30.9]
[1748935178449,4.1489554,159.8,159.78,30.9]
[1748935178650,4.1489554,159.8,159.76,4.1489554]
[1748935179244,4.19642761,159.8,159.76,4.19064046]
[1748935179551,10.45072761,159.8,159.77,6.255]
[1748935180551,4.19642761,159.8,159.78,6.2548]
[1748935180850,0.04747221,159.8,159.78,10.4037554]
[1748935181053,0.04747221,159.8,159.78,4.1489554]
[1748935181252,0.04747221,159.8,159.79,6.2545]
[1748935181950,0.04747221,159.8,159.79,37.1545]
[1748935184553,0.04747221,159.8,159.79,42.91825102]
[1748935186957,0.04747221,159.8,159.79,42.92707617]
[1748935189254,0.04747221,159.8,159.79,37.1545]
[1748935191264,0.04747221,159.8,159.79,44.90443706]
[1748935192360,6.2523,159.85,159.82,6.253]
[1748935192558,6.2523,159.85,159.82,12.0447679]
[1748935193462,6.2523,159.85,159.83,12.0446679]
[1748935193463,0.04656103,159.85,159.83,12.0446679]
[1748935193650,0.04656103,159.85,159.83,5.7917679]
[1748935194658,0.04656103,159.85,159.82,0.04721967]
[1748935194857,0.04656103,159.85,159.83,5.79839255]
[1748935195060,6.29876103,159.85,159.83,12.05129255]
[1748935195660,6.29876103,159.85,159.83,5.79839255]
[1748935198760,6.2525,159.84,159.83,5.80018426]
[1748935199359,6.2529,159.83,159.82,5.84740393]
[1748935200357,6.2529,159.83,159.82,5.84882665]
[1748935200862,6.2529,159.83,159.82,0.04721967]
[1748935201255,10.40266317,159.83,159.82,0.04721967]
[1748935201851,10.40266317,159.83,159.81,5.80204064]
[1748935202057,6.31356317,159.82,159.79,5.80427007]
[1748935202260,4.14976317,159.8,159.77,7.73547597]
[1748935202465,4.14976317,159.78,159.76,7.73547597]
[1748935202662,6.2557,159.76,159.75,19.33318201]
[1748935202963,6.2557,159.76,159.73,37.1567]
[1748935202964,4.14976317,159.76,159.74,7.77589761]
[1748935203166,6.53618765,159.77,159.74,0.04042164]
[1748935204061,0.0467067,159.77,159.74,0.04042164]
[1748935204264,6.3022067,159.77,159.74,0.04042164]
[1748935205466,6.3022067,159.77,159.74,6.29682164]
[1748935205873,0.0467067,159.77,159.74,0.04042164]
[1748935206168,0.0467067,159.77,159.75,6.256]
[1748935206358,0.0467067,159.77,159.74,0.04042164]
[1748935206859,0.0467067,159.77,159.74,7.77589761]
[1748935207464,0.0467067,159.77,159.76,6.2557]
[1748935210270,6.2533,159.82,159.79,6.2541]
[1748935210470,10.64588095,159.84,159.77,30.9]
[1748935210868,6.2536,159.82,159.79,6.2542]
[1748935211072,6.2536,159.82,159.77,30.9]
[1748935211273,0.04598214,159.81,159.78,0.04742991]
[1748935211470,0.04598214,159.81,159.78,6.30202991]
[1748935211670,0.04598214,159.81,159.78,0.04742991]
[1748935211876,6.48948095,159.8,159.78,0.04742991]
[1748935212875,6.2545,159.79,159.78,0.04742991]
[1748935220778,6.2562,159.75,159.72,6.2571]
[1748935220979,8.58988095,159.8,159.71,30.9]
[1748935220980,6.48948095,159.77,159.71,30.9]
[1748935221683,6.2567,159.74,159.72,0.04333983]
[1748935221885,0.04706847,159.76,159.72,0.04333983]
[1748935222283,6.2564,159.75,159.72,6.30053983]
[1748935223486,6.30286847,159.76,159.73,6.2568]
[1748935227296,6.30286847,159.76,159.72,0.04333983]
[1748935228296,6.30286847,159.76,159.73,6.2565]
[1748935228799,6.2561,159.75,159.73,6.2565]
[1748935230200,6.30276847,159.76,159.73,6.2565]
[1748935238193,6.2561,159.75,159.73,6.2565]
[1748935238407,6.2561,159.75,159.72,6.30033983]
[1748935238903,6.2565,159.74,159.72,0.04333983]
[1748935239305,0.04706847,159.76,159.72,0.04333983]
[1748935239505,6.2562,159.75,159.72,6.30033983]
[1748935239908,0.04706847,159.76,159.72,6.30033983]
[1748935240503,6.2561,159.75,159.72,6.30033983]